[Event "*** SCC Grand Prix: Titled Tuesday Blitz"]
[Site "Chess.com"]
[Date "2020.10.06"]
[Round "1"]
[White "kot60"]
[Black "Kacparov"]
[Result "1-0"]
[WhiteElo "2418"]
[BlackElo "2730"]
[TimeControl "180+1"]
[EndTime "10:08:04 PDT"]
[Termination "kot60 won by resignation"]

1. e4 {[%clk 0:02:59.2]} 1... c5 {[%clk 0:03:00]} 2. Nc3 {[%clk 0:02:58.6]} 2...
e6 {[%clk 0:03:00.3]} 3. Bc4 {[%clk 0:02:58.8]} 3... a6 {[%clk 0:03:00.4]} 4. a4
{[%clk 0:02:58.3]} 4... Nc6 {[%clk 0:03:00.5]} 5. d3 {[%clk 0:02:58.8]} 5... Nf6
{[%clk 0:03:00.5]} 6. Nge2 {[%clk 0:02:59.2]} 6... d5 {[%clk 0:03:00.7]} 7. exd5
{[%clk 0:03:00.1]} 7... exd5 {[%clk 0:03:01.1]} 8. Bb3 {[%clk 0:03:00.4]} 8...
h6 {[%clk 0:03:01.1]} 9. O-O {[%clk 0:02:59.7]} 9... Be7 {[%clk 0:03:01.3]} 10.
Re1 {[%clk 0:03:00.2]} 10... O-O {[%clk 0:03:01.3]} 11. Nf4 {[%clk 0:03:00.7]}
11... d4 {[%clk 0:03:01.4]} 12. Ne4 {[%clk 0:03:00.9]} 12... Nxe4 {[%clk
0:03:01.1]} 13. dxe4 {[%clk 0:03:01.8]} 13... Bg5 {[%clk 0:02:52.2]} 14. Nd5
{[%clk 0:03:00]} 14... Be6 {[%clk 0:02:46.6]} 15. f4 {[%clk 0:02:57.2]} 15...
Bh4 {[%clk 0:02:42.3]} 16. Rf1 {[%clk 0:02:38.8]} 16... Rc8 {[%clk 0:02:17.2]}
17. Qh5 {[%clk 0:02:34.5]} 17... Bxd5 {[%clk 0:02:07.1]} 18. Bxd5 {[%clk
0:02:33.4]} 18... Nb4 {[%clk 0:02:04.9]} 19. Bxb7 {[%clk 0:02:23.4]} 19... Rc7
{[%clk 0:02:04.7]} 20. Bd5 {[%clk 0:02:17.9]} 20... Nxd5 {[%clk 0:02:04.3]} 21.
exd5 {[%clk 0:02:13.4]} 21... Rd7 {[%clk 0:02:04.1]} 22. d6 {[%clk 0:02:04.9]}
22... Rxd6 {[%clk 0:01:38.1]} 23. Qxc5 {[%clk 0:02:03.8]} 23... Qd7 {[%clk
0:01:38]} 24. Qc4 {[%clk 0:01:53.1]} 24... Rc8 {[%clk 0:01:31]} 25. Qd3 {[%clk
0:01:52.7]} 25... Rdc6 {[%clk 0:01:16.3]} 26. c3 {[%clk 0:01:52.3]} 26... Bf6
{[%clk 0:01:12.9]} 27. Bd2 {[%clk 0:01:34.1]} 27... Rd6 {[%clk 0:01:11.6]} 28.
c4 {[%clk 0:01:33.3]} 28... Qb7 {[%clk 0:00:57.6]} 29. b4 {[%clk 0:01:30.5]}
29... Re6 {[%clk 0:00:56.1]} 30. Rae1 {[%clk 0:01:22.4]} 30... Rce8 {[%clk
0:00:52]} 31. Rxe6 {[%clk 0:01:21.3]} 31... Rxe6 {[%clk 0:00:52.9]} 32. Re1
{[%clk 0:01:20.7]} 32... Rxe1+ {[%clk 0:00:39.1]} 33. Bxe1 {[%clk 0:01:20.7]}
33... Qd7 {[%clk 0:00:34.7]} 34. b5 {[%clk 0:01:18.7]} 34... Qd6 {[%clk
0:00:34.8]} 35. Bd2 {[%clk 0:01:17.3]} 35... Bd8 {[%clk 0:00:33.8]} 36. a5
{[%clk 0:01:09.8]} 36... g6 {[%clk 0:00:26.2]} 37. h3 {[%clk 0:01:05.4]} 37...
Qc5 {[%clk 0:00:23.4]} 38. Kh2 {[%clk 0:00:56.6]} 38... Bc7 {[%clk 0:00:23.3]}
39. Kh1 {[%clk 0:00:54.5]} 39... h5 {[%clk 0:00:20.5]} 40. b6 {[%clk 0:00:54.1]}
40... Bd6 {[%clk 0:00:20.3]} 41. Qb3 {[%clk 0:00:49.3]} 41... h4 {[%clk
0:00:19.9]} 42. b7 {[%clk 0:00:46.8]} 42... Bb8 {[%clk 0:00:20.1]} 43. Qb4
{[%clk 0:00:44.1]} 43... Qc6 {[%clk 0:00:19]} 44. Qe7 {[%clk 0:00:37]} 44... Kg7
{[%clk 0:00:17.1]} 45. Be1 {[%clk 0:00:26.8]} 45... Qxc4 {[%clk 0:00:15.9]} 46.
Qxh4 {[%clk 0:00:24.6]} 46... Qf1+ {[%clk 0:00:15.9]} 47. Kh2 {[%clk 0:00:23.7]}
47... Bxf4+ {[%clk 0:00:12.8]} 48. Bg3 {[%clk 0:00:24.2]} 48... g5 {[%clk
0:00:12.1]} 49. Qg4 {[%clk 0:00:23.4]} 49... Bxg3+ {[%clk 0:00:05.8]} 50. Qxg3
{[%clk 0:00:23.4]} 50... d3 {[%clk 0:00:04.8]} 51. b8=Q {[%clk 0:00:23.2]} 51...
d2 {[%clk 0:00:05.1]} 52. Qbe5+ {[%clk 0:00:23.6]} 52... f6 {[%clk 0:00:04.9]}
53. Qe7+ {[%clk 0:00:23.1]} 53... Kh6 {[%clk 0:00:05.3]} 54. Qf8+ {[%clk
0:00:21.5]} 54... Kg6 {[%clk 0:00:05.5]} 55. Qg8+ {[%clk 0:00:19.7]} 55... Kh6
{[%clk 0:00:05.8]} 56. Qc7 {[%clk 0:00:16.9]} 56... Qf4+ {[%clk 0:00:03.3]} 57.
Qxf4 {[%clk 0:00:16.4]} 57... gxf4 {[%clk 0:00:04.2]} 58. Qd5 {[%clk 0:00:15.9]}
58... f3 {[%clk 0:00:04.5]} 59. Qxd2+ {[%clk 0:00:16.1]} 59... Kg6 {[%clk
0:00:04.7]} 60. Qf2 {[%clk 0:00:16.1]} 60... fxg2 {[%clk 0:00:04.5]} 61. Qxg2+
{[%clk 0:00:16.1]} 1-0

[Event "*** SCC Grand Prix: Titled Tuesday Blitz"]
[Site "Chess.com"]
[Date "2020.10.06"]
[Round "1"]
[White "Zmeeed63"]
[Black "vanea_03"]
[Result "0-1"]
[WhiteElo "2359"]
[BlackElo "2687"]
[TimeControl "180+1"]
[EndTime "10:08:07 PDT"]
[Termination "vanea_03 won on time"]

1. d4 {[%clk 0:03:00.9]} 1... d5 {[%clk 0:02:58.6]} 2. c4 {[%clk 0:03:00.5]}
2... dxc4 {[%clk 0:02:57.7]} 3. Nf3 {[%clk 0:02:59.6]} 3... a6 {[%clk
0:02:57.6]} 4. e3 {[%clk 0:02:54.8]} 4... Bg4 {[%clk 0:02:57.7]} 5. Bxc4 {[%clk
0:02:54.2]} 5... e6 {[%clk 0:02:58.3]} 6. h4 {[%clk 0:02:54]} 6... Nf6 {[%clk
0:02:57.4]} 7. Nbd2 {[%clk 0:02:52.4]} 7... Nc6 {[%clk 0:02:55]} 8. Be2 {[%clk
0:02:51.8]} 8... Bd6 {[%clk 0:02:53.4]} 9. a3 {[%clk 0:02:46.8]} 9... O-O {[%clk
0:02:53]} 10. Nc4 {[%clk 0:02:31.9]} 10... b5 {[%clk 0:02:37.2]} 11. Nce5 {[%clk
0:02:16.2]} 11... Bxe5 {[%clk 0:02:31.2]} 12. Nxe5 {[%clk 0:01:53]} 12... Nxe5
{[%clk 0:02:14.2]} 13. f3 {[%clk 0:01:53.1]} 13... Nxf3+ {[%clk 0:01:48.5]} 14.
gxf3 {[%clk 0:01:54]} 14... Bh5 {[%clk 0:01:48.8]} 15. e4 {[%clk 0:01:48.9]}
15... Nd7 {[%clk 0:01:38.8]} 16. Bg5 {[%clk 0:01:40.6]} 16... f6 {[%clk
0:01:38.9]} 17. Be3 {[%clk 0:01:39.8]} 17... e5 {[%clk 0:01:31.7]} 18. Rg1
{[%clk 0:01:33.3]} 18... exd4 {[%clk 0:01:28.5]} 19. Bxd4 {[%clk 0:01:27]} 19...
c5 {[%clk 0:01:28.1]} 20. Be3 {[%clk 0:01:14.4]} 20... Qe7 {[%clk 0:01:19.5]}
21. Bh6 {[%clk 0:01:04.1]} 21... Bg6 {[%clk 0:01:05.9]} 22. h5 {[%clk
0:00:47.2]} 22... gxh6 {[%clk 0:00:59]} 23. hxg6 {[%clk 0:00:47.5]} 23... Ne5
{[%clk 0:00:59.6]} 24. Qd5+ {[%clk 0:00:43]} 24... Kg7 {[%clk 0:00:59.1]} 25.
gxh7+ {[%clk 0:00:42.5]} 25... Kxh7 {[%clk 0:00:59.3]} 26. O-O-O {[%clk
0:00:21.8]} 26... Rad8 {[%clk 0:00:58.1]} 27. Qb3 {[%clk 0:00:22.2]} 27... Rxd1+
{[%clk 0:00:43.4]} 28. Bxd1 {[%clk 0:00:23.1]} 28... c4 {[%clk 0:00:41.1]} 29.
Qe3 {[%clk 0:00:22.6]} 29... Rd8 {[%clk 0:00:38.1]} 30. Bc2 {[%clk 0:00:15.1]}
30... Nd3+ {[%clk 0:00:38]} 31. Kb1 {[%clk 0:00:15.4]} 31... b4 {[%clk 0:00:27]}
32. Rh1 {[%clk 0:00:15.6]} 32... Qg7 {[%clk 0:00:25.9]} 33. axb4 {[%clk
0:00:12.9]} 33... Nxb4 {[%clk 0:00:26.4]} 34. Qb6 {[%clk 0:00:07.9]} 34... Qe7
{[%clk 0:00:26.7]} 35. Qe3 {[%clk 0:00:06.5]} 35... Qf8 {[%clk 0:00:16.5]} 36.
e5+ {[%clk 0:00:05.3]} 36... Nxc2 {[%clk 0:00:16.3]} 37. Kxc2 {[%clk 0:00:03.4]}
37... fxe5 {[%clk 0:00:14.5]} 38. Qe4+ {[%clk 0:00:03]} 38... Kh8 {[%clk
0:00:12.8]} 39. Qxe5+ {[%clk 0:00:03.5]} 39... Kh7 {[%clk 0:00:12.9]} 40. Qe4+
{[%clk 0:00:03.3]} 40... Kh8 {[%clk 0:00:11.6]} 41. Qe5+ {[%clk 0:00:03.7]}
41... Kh7 {[%clk 0:00:09.9]} 42. Qe4+ {[%clk 0:00:04.1]} 42... Kh8 {[%clk
0:00:05]} 43. f4 {[%clk 0:00:04.2]} 43... Qg7 {[%clk 0:00:03.6]} 44. f5 {[%clk
0:00:02.4]} 44... Rb8 {[%clk 0:00:03.8]} 45. Qd5 {[%clk 0:00:01.5]} 45... Qxb2+
{[%clk 0:00:03.3]} 46. Kd1 {[%clk 0:00:02]} 46... Qa1+ {[%clk 0:00:03.4]} 47.
Ke2 {[%clk 0:00:02.3]} 47... Rb2+ {[%clk 0:00:03.7]} 48. Ke3 {[%clk 0:00:02.8]}
48... Qa3+ {[%clk 0:00:04.1]} 49. Kf4 {[%clk 0:00:02.8]} 49... Rf2+ {[%clk
0:00:04.5]} 50. Kg4 {[%clk 0:00:01.7]} 50... Qf8 {[%clk 0:00:02.8]} 0-1

[Event "*** SCC Grand Prix: Titled Tuesday Blitz"]
[Site "Chess.com"]
[Date "2020.10.06"]
[Round "1"]
[White "louis198"]
[Black "VladaSviridova"]
[Result "1-0"]
[WhiteElo "2567"]
[BlackElo "2253"]
[TimeControl "180+1"]
[EndTime "10:08:09 PDT"]
[Termination "louis198 won by resignation"]

1. d4 {[%clk 0:02:59.4]} 1... d5 {[%clk 0:02:59.8]} 2. c4 {[%clk 0:02:59.3]}
2... c6 {[%clk 0:03:00]} 3. Nc3 {[%clk 0:03:00.2]} 3... Nf6 {[%clk 0:02:59.5]}
4. Nf3 {[%clk 0:03:00.2]} 4... dxc4 {[%clk 0:02:59.6]} 5. e3 {[%clk 0:03:00.4]}
5... b5 {[%clk 0:02:56.6]} 6. a4 {[%clk 0:03:00.5]} 6... b4 {[%clk 0:02:56.7]}
7. Na2 {[%clk 0:03:00.4]} 7... e6 {[%clk 0:02:57]} 8. Bxc4 {[%clk 0:03:00.4]}
8... Be7 {[%clk 0:02:56.5]} 9. O-O {[%clk 0:02:59.9]} 9... O-O {[%clk
0:02:56.4]} 10. Bd2 {[%clk 0:03:00.2]} 10... a5 {[%clk 0:02:55.5]} 11. Qe2
{[%clk 0:03:00.6]} 11... Nbd7 {[%clk 0:02:36.3]} 12. Rfd1 {[%clk 0:03:00.1]}
12... Qb6 {[%clk 0:02:34.3]} 13. Nc1 {[%clk 0:03:00.2]} 13... c5 {[%clk
0:02:31]} 14. Nb3 {[%clk 0:03:00.2]} 14... Bb7 {[%clk 0:02:25.5]} 15. Rac1
{[%clk 0:02:59.7]} 15... Rac8 {[%clk 0:02:22.7]} 16. Bb5 {[%clk 0:02:59.7]}
16... cxd4 {[%clk 0:02:15.4]} 17. Nbxd4 {[%clk 0:02:59.8]} 17... Nc5 {[%clk
0:02:11.9]} 18. Ne5 {[%clk 0:03:00]} 18... Rfd8 {[%clk 0:02:07.1]} 19. Be1
{[%clk 0:02:59.7]} 19... Nd5 {[%clk 0:01:36.3]} 20. f3 {[%clk 0:02:42.4]} 20...
f6 {[%clk 0:01:24.8]} 21. Nc4 {[%clk 0:02:41.9]} 21... Qa7 {[%clk 0:01:17.9]}
22. Bg3 {[%clk 0:02:40.2]} 22... Nc7 {[%clk 0:01:03.6]} 23. Bf2 {[%clk
0:02:21.2]} 23... Nxb5 {[%clk 0:00:56.9]} 24. Nxb5 {[%clk 0:02:21.3]} 24... Qa6
{[%clk 0:00:56]} 25. Rxd8+ {[%clk 0:01:59.2]} 25... Rxd8 {[%clk 0:00:49.4]} 26.
Rd1 {[%clk 0:01:44.4]} 26... Rxd1+ {[%clk 0:00:19.9]} 27. Qxd1 {[%clk
0:01:44.7]} 27... Bd5 {[%clk 0:00:19.6]} 28. Nd2 {[%clk 0:00:30.6]} 28... Qc6
{[%clk 0:00:17]} 29. e4 {[%clk 0:00:30.4]} 29... Ba2 {[%clk 0:00:16.1]} 30. Qc2
{[%clk 0:00:21.9]} 30... b3 {[%clk 0:00:15.4]} 31. Qc3 {[%clk 0:00:20.5]} 31...
Qb6 {[%clk 0:00:10.8]} 32. Nc4 {[%clk 0:00:19.5]} 32... Qd8 {[%clk 0:00:09.2]}
33. Qxa5 {[%clk 0:00:18]} 33... Qd1+ {[%clk 0:00:08.6]} 34. Qe1 {[%clk
0:00:18.6]} 34... Qxe1+ {[%clk 0:00:08.5]} 35. Bxe1 {[%clk 0:00:19]} 35... Nxa4
{[%clk 0:00:08.3]} 36. Kf2 {[%clk 0:00:17.2]} 36... Kf7 {[%clk 0:00:08]} 37. Ke3
{[%clk 0:00:17.7]} 37... Bc5+ {[%clk 0:00:07.8]} 38. Kd2 {[%clk 0:00:17.5]}
38... Bb1 {[%clk 0:00:07.7]} 39. Nc3 {[%clk 0:00:17.6]} 39... Bc2 {[%clk
0:00:07.2]} 40. Nxa4 {[%clk 0:00:17.7]} 40... Bb4+ {[%clk 0:00:06.6]} 41. Nc3
{[%clk 0:00:17.8]} 41... e5 {[%clk 0:00:06]} 42. Ne3 {[%clk 0:00:18.2]} 42...
Ke6 {[%clk 0:00:05.3]} 43. Nxc2 {[%clk 0:00:18.7]} 43... bxc2 {[%clk 0:00:05.6]}
44. Kxc2 {[%clk 0:00:19.6]} 44... Bc5 {[%clk 0:00:05.8]} 45. Nd5 {[%clk
0:00:19.6]} 45... Bg1 {[%clk 0:00:05.7]} 46. h3 {[%clk 0:00:20]} 46... Kd6
{[%clk 0:00:05.5]} 47. b4 {[%clk 0:00:20.5]} 47... Kc6 {[%clk 0:00:05.6]} 48.
Kb3 {[%clk 0:00:20.8]} 48... Kb5 {[%clk 0:00:05.8]} 49. Nc3+ {[%clk 0:00:20.9]}
49... Kc6 {[%clk 0:00:05.3]} 50. Kc4 {[%clk 0:00:21.4]} 50... Bd4 {[%clk
0:00:05.6]} 51. b5+ {[%clk 0:00:21.6]} 51... Kb6 {[%clk 0:00:05.6]} 52. Nd5+
{[%clk 0:00:22.5]} 52... Kb7 {[%clk 0:00:05.5]} 53. Ba5 {[%clk 0:00:23.1]} 53...
Bf2 {[%clk 0:00:04.7]} 54. Bb4 {[%clk 0:00:22.8]} 54... Bg3 {[%clk 0:00:03.5]}
55. Bf8 {[%clk 0:00:23.7]} 55... g5 {[%clk 0:00:03]} 56. Nxf6 {[%clk 0:00:23.9]}
1-0

[Event "*** SCC Grand Prix: Titled Tuesday Blitz"]
[Site "Chess.com"]
[Date "2020.10.06"]
[Round "1"]
[White "annazero"]
[Black "W_Amadeus"]
[Result "0-1"]
[WhiteElo "2382"]
[BlackElo "2739"]
[TimeControl "180+1"]
[EndTime "10:08:10 PDT"]
[Termination "W_Amadeus won on time"]

1. d4 {[%clk 0:03:00.9]} 1... Nf6 {[%clk 0:02:59.4]} 2. Nf3 {[%clk 0:03:00]}
2... g6 {[%clk 0:02:58.8]} 3. g3 {[%clk 0:02:59.4]} 3... Bg7 {[%clk 0:02:58.7]}
4. Bg2 {[%clk 0:02:59.9]} 4... O-O {[%clk 0:02:59.3]} 5. O-O {[%clk 0:03:00.5]}
5... d6 {[%clk 0:02:57.6]} 6. c4 {[%clk 0:03:00.3]} 6... c6 {[%clk 0:02:57.5]}
7. Nc3 {[%clk 0:02:59.9]} 7... Qb6 {[%clk 0:02:57.6]} 8. h3 {[%clk 0:03:00.5]}
8... Na6 {[%clk 0:02:54.7]} 9. b3 {[%clk 0:02:58]} 9... e5 {[%clk 0:02:54.3]}
10. Bb2 {[%clk 0:02:51.8]} 10... e4 {[%clk 0:02:46.3]} 11. Ne1 {[%clk
0:02:46.6]} 11... d5 {[%clk 0:02:45.7]} 12. c5 {[%clk 0:02:37.1]} 12... Qd8
{[%clk 0:02:41.2]} 13. e3 {[%clk 0:02:32.5]} 13... Nc7 {[%clk 0:02:33.7]} 14. b4
{[%clk 0:02:31.9]} 14... h5 {[%clk 0:02:29.4]} 15. a4 {[%clk 0:02:26.2]} 15...
Ne6 {[%clk 0:02:23.8]} 16. b5 {[%clk 0:02:21.8]} 16... Ng5 {[%clk 0:02:22.9]}
17. h4 {[%clk 0:02:17.4]} 17... Bg4 {[%clk 0:02:21.6]} 18. Qb3 {[%clk
0:02:11.4]} 18... Nf3+ {[%clk 0:02:18.9]} 19. Nxf3 {[%clk 0:02:06.1]} 19... exf3
{[%clk 0:02:16]} 20. Bh1 {[%clk 0:02:06.3]} 20... g5 {[%clk 0:02:07.2]} 21. Qd1
{[%clk 0:01:51.6]} 21... gxh4 {[%clk 0:01:57.6]} 22. Bxf3 {[%clk 0:01:51.7]}
22... h3 {[%clk 0:01:43]} 23. Bxg4 {[%clk 0:01:35.1]} 23... hxg4 {[%clk
0:01:35.4]} 24. Ne2 {[%clk 0:01:35.6]} 24... Ne4 {[%clk 0:01:28]} 25. Nf4 {[%clk
0:01:34.3]} 25... Qd7 {[%clk 0:00:56.8]} 26. Qe2 {[%clk 0:01:32.6]} 26... Bh6
{[%clk 0:00:53.8]} 27. Nd3 {[%clk 0:01:30.2]} 27... f6 {[%clk 0:00:50.6]} 28.
Kh2 {[%clk 0:01:21.9]} 28... Rae8 {[%clk 0:00:42.9]} 29. bxc6 {[%clk 0:01:10.2]}
29... bxc6 {[%clk 0:00:42.6]} 30. Rab1 {[%clk 0:00:53.6]} 30... Qf5 {[%clk
0:00:29.9]} 31. Ba1 {[%clk 0:00:46.9]} 31... Ng5 {[%clk 0:00:29.4]} 32. Nf4
{[%clk 0:00:18.9]} 32... Nf3+ {[%clk 0:00:26.8]} 33. Kh1 {[%clk 0:00:19.5]}
33... Bxf4 {[%clk 0:00:23]} 34. gxf4 {[%clk 0:00:18.6]} 34... Qe4 {[%clk
0:00:23.2]} 35. Rb7 {[%clk 0:00:16.8]} 35... Nxd4+ {[%clk 0:00:06.3]} 36. f3
{[%clk 0:00:15.7]} 36... Nxe2 {[%clk 0:00:06.8]} 37. fxe4 {[%clk 0:00:15.5]}
37... Ng3+ {[%clk 0:00:07.2]} 38. Kg1 {[%clk 0:00:15.8]} 38... h2+ {[%clk
0:00:05.4]} 39. Kxh2 {[%clk 0:00:14.5]} 39... Nxf1+ {[%clk 0:00:06]} 40. Kg1
{[%clk 0:00:15.4]} 40... Nxe3 {[%clk 0:00:04.5]} 41. exd5 {[%clk 0:00:16.3]}
41... Nxd5 {[%clk 0:00:04.5]} 42. Rxa7 {[%clk 0:00:16.6]} 42... Re1+ {[%clk
0:00:04.9]} 43. Kf2 {[%clk 0:00:17.1]} 43... Rxa1 {[%clk 0:00:05.6]} 44. Ra6
{[%clk 0:00:17.5]} 44... Ra2+ {[%clk 0:00:05.5]} 45. Kg3 {[%clk 0:00:18.3]}
45... f5 {[%clk 0:00:05.3]} 46. Rxc6 {[%clk 0:00:17.4]} 46... Rxa4 {[%clk
0:00:05.3]} 47. Rd6 {[%clk 0:00:13.1]} 47... Nxf4 {[%clk 0:00:05.1]} 48. c6
{[%clk 0:00:11.8]} 48... Rc4 {[%clk 0:00:04.9]} 49. Rd7 {[%clk 0:00:00.9]} 49...
Ne2+ {[%clk 0:00:03.9]} 0-1

[Event "*** SCC Grand Prix: Titled Tuesday Blitz"]
[Site "Chess.com"]
[Date "2020.10.06"]
[Round "1"]
[White "draksbg"]
[Black "night_player"]
[Result "1-0"]
[WhiteElo "2603"]
[BlackElo "2282"]
[TimeControl "180+1"]
[EndTime "10:08:18 PDT"]
[Termination "draksbg won on time"]

1. e4 {[%clk 0:02:56.2]} 1... c5 {[%clk 0:02:59.7]} 2. Nf3 {[%clk 0:02:52.5]}
2... Nc6 {[%clk 0:02:59.9]} 3. d4 {[%clk 0:02:51]} 3... cxd4 {[%clk 0:03:00.8]}
4. Nxd4 {[%clk 0:02:51.3]} 4... e5 {[%clk 0:03:00.6]} 5. Nb5 {[%clk 0:02:50]}
5... d6 {[%clk 0:03:00.5]} 6. a4 {[%clk 0:02:46.7]} 6... Be7 {[%clk 0:02:58.7]}
7. N1c3 {[%clk 0:02:45.1]} 7... a6 {[%clk 0:02:58.7]} 8. Na3 {[%clk 0:02:44.6]}
8... Be6 {[%clk 0:02:55.2]} 9. Bc4 {[%clk 0:02:43.7]} 9... Nf6 {[%clk 0:02:30]}
10. Bg5 {[%clk 0:02:36.3]} 10... O-O {[%clk 0:02:22.8]} 11. Bxf6 {[%clk
0:02:36.5]} 11... Bxf6 {[%clk 0:02:22.8]} 12. Nd5 {[%clk 0:02:36.8]} 12... Bxd5
{[%clk 0:02:21.6]} 13. Bxd5 {[%clk 0:02:36.8]} 13... Qc7 {[%clk 0:02:13.3]} 14.
O-O {[%clk 0:02:25.8]} 14... Ne7 {[%clk 0:02:03.2]} 15. c3 {[%clk 0:02:22.1]}
15... Rad8 {[%clk 0:01:53.3]} 16. Nc2 {[%clk 0:02:16.3]} 16... Bg5 {[%clk
0:01:49.2]} 17. Qd3 {[%clk 0:02:10.8]} 17... Kh8 {[%clk 0:01:48.1]} 18. Nb4
{[%clk 0:01:29.2]} 18... f5 {[%clk 0:01:37.9]} 19. exf5 {[%clk 0:01:29]} 19...
Nxf5 {[%clk 0:01:30.6]} 20. Be4 {[%clk 0:01:27]} 20... Qf7 {[%clk 0:01:18.9]}
21. Nd5 {[%clk 0:01:18.7]} 21... g6 {[%clk 0:00:48.8]} 22. Rad1 {[%clk
0:01:16.5]} 22... Ng7 {[%clk 0:00:28.2]} 23. g3 {[%clk 0:01:14.3]} 23... Bh6
{[%clk 0:00:20.3]} 24. Kg2 {[%clk 0:01:12.9]} 24... Ne6 {[%clk 0:00:19.8]} 25.
Qe2 {[%clk 0:01:11.3]} 25... Nc5 {[%clk 0:00:19.7]} 26. Bc2 {[%clk 0:01:10.6]}
26... Rfe8 {[%clk 0:00:17.9]} 27. b4 {[%clk 0:01:10]} 27... Nd7 {[%clk
0:00:17.5]} 28. a5 {[%clk 0:01:08.6]} 28... Nf6 {[%clk 0:00:17.2]} 29. Bb3
{[%clk 0:01:05.9]} 29... Qg7 {[%clk 0:00:16.5]} 30. Nxf6 {[%clk 0:01:04.7]}
30... Qxf6 {[%clk 0:00:17.4]} 31. Bd5 {[%clk 0:01:04.8]} 31... Qe7 {[%clk
0:00:16.4]} 32. Qe4 {[%clk 0:01:01.4]} 32... Rd7 {[%clk 0:00:14.7]} 33. c4
{[%clk 0:00:59.1]} 33... Bg7 {[%clk 0:00:14.5]} 34. b5 {[%clk 0:00:58]} 34...
axb5 {[%clk 0:00:14.2]} 35. cxb5 {[%clk 0:00:58.9]} 35... Rc7 {[%clk 0:00:14.8]}
36. Rc1 {[%clk 0:00:55.5]} 36... Rec8 {[%clk 0:00:14.3]} 37. Rxc7 {[%clk
0:00:54.7]} 37... Rxc7 {[%clk 0:00:15.2]} 38. Ra1 {[%clk 0:00:52.7]} 38... Rc8
{[%clk 0:00:11.3]} 39. a6 {[%clk 0:00:51.3]} 39... bxa6 {[%clk 0:00:11.3]} 40.
bxa6 {[%clk 0:00:52.2]} 40... Qa7 {[%clk 0:00:11.2]} 41. Bb7 {[%clk 0:00:50.3]}
41... Rd8 {[%clk 0:00:10.6]} 42. Ra2 {[%clk 0:00:41.4]} 42... Bf6 {[%clk
0:00:06]} 43. h4 {[%clk 0:00:40.9]} 43... Kg7 {[%clk 0:00:06.1]} 44. Qd5 {[%clk
0:00:39.5]} 44... Rd7 {[%clk 0:00:04.4]} 45. Rc2 {[%clk 0:00:38.3]} 45... Rf7
{[%clk 0:00:02.4]} 46. Qxd6 {[%clk 0:00:32.1]} 46... e4 {[%clk 0:00:02.5]} 47.
Bxe4 {[%clk 0:00:27.2]} 47... Bd4 {[%clk 0:00:02.7]} 48. f4 {[%clk 0:00:23.7]}
48... Rd7 {[%clk 0:00:03]} 49. Qc6 {[%clk 0:00:18.9]} 49... Re7 {[%clk
0:00:03.3]} 50. Bf3 {[%clk 0:00:15.3]} 50... Be3 {[%clk 0:00:03.1]} 51. Re2
{[%clk 0:00:13.9]} 51... Rc7 {[%clk 0:00:02.7]} 52. Qe6 {[%clk 0:00:11.5]} 52...
Bc5 {[%clk 0:00:02.9]} 53. Qe5+ {[%clk 0:00:11.6]} 53... Kf7 {[%clk 0:00:02.6]}
54. Bd5+ {[%clk 0:00:11.7]} 1-0

[Event "*** SCC Grand Prix: Titled Tuesday Blitz"]
[Site "Chess.com"]
[Date "2020.10.06"]
[Round "1"]
[White "Harsha_Bharathakoti"]
[Black "Alindsay211"]
[Result "1-0"]
[WhiteElo "2753"]
[BlackElo "2390"]
[TimeControl "180+1"]
[EndTime "10:08:20 PDT"]
[Termination "Harsha_Bharathakoti won on time"]

1. d4 {[%clk 0:02:58.7]} 1... Nf6 {[%clk 0:02:58.8]} 2. c4 {[%clk 0:02:58.4]}
2... g6 {[%clk 0:02:57.8]} 3. Nc3 {[%clk 0:02:57.1]} 3... Bg7 {[%clk 0:02:57.5]}
4. e4 {[%clk 0:02:57]} 4... d6 {[%clk 0:02:56.6]} 5. Nf3 {[%clk 0:02:57]} 5...
O-O {[%clk 0:02:55.5]} 6. Be2 {[%clk 0:02:57.4]} 6... Nbd7 {[%clk 0:02:45.3]} 7.
O-O {[%clk 0:02:54.8]} 7... e5 {[%clk 0:02:45.2]} 8. Be3 {[%clk 0:02:41.1]} 8...
Re8 {[%clk 0:02:42.2]} 9. d5 {[%clk 0:02:41.4]} 9... a5 {[%clk 0:02:34.1]} 10.
Nd2 {[%clk 0:02:39.9]} 10... Qe7 {[%clk 0:02:27.8]} 11. a3 {[%clk 0:02:33.2]}
11... h6 {[%clk 0:02:25.3]} 12. b4 {[%clk 0:02:29.6]} 12... b6 {[%clk
0:02:25.2]} 13. Nb3 {[%clk 0:02:26.7]} 13... axb4 {[%clk 0:02:07.5]} 14. axb4
{[%clk 0:02:27.6]} 14... Rxa1 {[%clk 0:02:07.6]} 15. Qxa1 {[%clk 0:02:28.5]}
15... Bb7 {[%clk 0:01:56.2]} 16. Qc1 {[%clk 0:02:18.9]} 16... Kh7 {[%clk
0:01:54.4]} 17. Qc2 {[%clk 0:02:06.2]} 17... Ra8 {[%clk 0:01:53.1]} 18. Nb5
{[%clk 0:02:04.1]} 18... Qd8 {[%clk 0:01:52.3]} 19. c5 {[%clk 0:01:56.2]} 19...
bxc5 {[%clk 0:01:48.7]} 20. bxc5 {[%clk 0:01:57.1]} 20... Ba6 {[%clk 0:01:43.9]}
21. c6 {[%clk 0:01:51.3]} 21... Nf8 {[%clk 0:01:35.5]} 22. Rb1 {[%clk
0:01:43.4]} 22... Rb8 {[%clk 0:01:34.3]} 23. Na5 {[%clk 0:01:39.6]} 23... Bxb5
{[%clk 0:01:29.1]} 24. Bxb5 {[%clk 0:01:31.9]} 24... Qc8 {[%clk 0:01:29]} 25. f3
{[%clk 0:01:29.9]} 25... g5 {[%clk 0:01:24.2]} 26. Bd3 {[%clk 0:01:18.7]} 26...
Ng6 {[%clk 0:01:23.8]} 27. Rb7 {[%clk 0:01:13.4]} 27... Ra8 {[%clk 0:01:23.6]}
28. Bd2 {[%clk 0:00:44.1]} 28... Nf4 {[%clk 0:01:18.6]} 29. Bf1 {[%clk 0:00:44]}
29... g4 {[%clk 0:01:08.4]} 30. g3 {[%clk 0:00:41.1]} 30... Ng6 {[%clk
0:01:07.1]} 31. Qb3 {[%clk 0:00:37.2]} 31... gxf3 {[%clk 0:01:03.3]} 32. Qxf3
{[%clk 0:00:38.1]} 32... h5 {[%clk 0:00:54.4]} 33. Bd3 {[%clk 0:00:35.6]} 33...
h4 {[%clk 0:00:52.7]} 34. Kg2 {[%clk 0:00:29.5]} 34... hxg3 {[%clk 0:00:51.3]}
35. hxg3 {[%clk 0:00:30.4]} 35... Kg8 {[%clk 0:00:46.8]} 36. Rb1 {[%clk
0:00:28.8]} 36... Rb8 {[%clk 0:00:37.6]} 37. Rxb8 {[%clk 0:00:26.8]} 37... Qxb8
{[%clk 0:00:36.3]} 38. Bc2 {[%clk 0:00:24]} 38... Qb6 {[%clk 0:00:35.2]} 39. Qb3
{[%clk 0:00:21.3]} 39... Qd4 {[%clk 0:00:23.7]} 40. Qe3 {[%clk 0:00:21]} 40...
Qb2 {[%clk 0:00:20.3]} 41. Qc3 {[%clk 0:00:18.8]} 41... Qa2 {[%clk 0:00:19.1]}
42. Qb3 {[%clk 0:00:14.8]} 42... Qa1 {[%clk 0:00:17.6]} 43. Qc3 {[%clk
0:00:13.7]} 43... Qa2 {[%clk 0:00:16.6]} 44. Nc4 {[%clk 0:00:13.8]} 44... Qa7
{[%clk 0:00:15.2]} 45. Be3 {[%clk 0:00:13.5]} 45... Qa6 {[%clk 0:00:13.9]} 46.
Bd3 {[%clk 0:00:13.4]} 46... Qa2+ {[%clk 0:00:12.5]} 47. Qc2 {[%clk 0:00:14]}
47... Qa1 {[%clk 0:00:10.7]} 48. Qb2 {[%clk 0:00:10.4]} 48... Qe1 {[%clk
0:00:09.7]} 49. Qd2 {[%clk 0:00:09.7]} 49... Qa1 {[%clk 0:00:08.8]} 50. Qe2
{[%clk 0:00:08.9]} 50... Qa4 {[%clk 0:00:07.5]} 51. Qc2 {[%clk 0:00:08.3]} 51...
Qa1 {[%clk 0:00:06.7]} 52. Be2 {[%clk 0:00:07.2]} 52... Qa8 {[%clk 0:00:06.7]}
53. Bf3 {[%clk 0:00:06.5]} 53... Qa1 {[%clk 0:00:04.5]} 54. Nd2 {[%clk
0:00:06.5]} 54... Qa6 {[%clk 0:00:04.3]} 55. Nb1 {[%clk 0:00:06.8]} 55... Qa8
{[%clk 0:00:04.1]} 56. Nc3 {[%clk 0:00:07.2]} 56... Qa6 {[%clk 0:00:03.1]} 57.
Qb2 {[%clk 0:00:07.4]} 57... Kh8 {[%clk 0:00:02.1]} 58. Nb5 {[%clk 0:00:07.4]}
1-0